fUSD/lending_fUSD_20240616
["ID","MTS","AMOUNT","RATE_DAILY","PERIOD"]
[329626854,1718514734925,-500.0,0.00023561,3]
[329626855,1718514734940,-151.62822846,0.00023568,2]
[329626856,1718514734964,-166.66666666,0.00023576,2]
[329626857,1718514734989,-325.55548374,0.00023599,2]
[329626858,1718514735015,-94381.97287523,0.000236,2]
[329626859,1718514735028,-1929.35,0.000236,2]
[329626860,1718514735041,-224.15318,0.000236,2]
[329626861,1718514735061,-14649.26280232,0.00023613,2]
[329626862,1718514735081,-288.0,0.0002362,2]
[329626863,1718514735099,-224.15318,0.00023623,2]
[329626864,1718514735111,-224.15318,0.00023633,2]
[329626865,1718514735122,-160.02955024,0.00023635,2]
[329626866,1718514735135,-224.15318,0.00023643,2]
[329626867,1718514735148,-224.15318,0.00023652,2]
[329626868,1718514735170,-466.66446184,0.00023659,2]
[329626869,1718514735183,-177.26,0.00023666,2]
[329626870,1718514735195,-152.0,0.00023674,8]
[329626871,1718514735206,-152.83323731,0.00023685,2]
[329626872,1718514735239,-689.66855916,0.00023687,2]
[329626873,1718514735250,-224.15318,0.00023693,2]
[329626874,1718514735281,-150.0,0.000237,3]
[329626875,1718514735293,-150.0,0.000237,3]
[329626876,1718514735312,-783.57262401,0.00023703,2]
[329626877,1718514735324,-379.72664571,0.00023722,2]
[329626878,1718514735340,-266.75492286,0.00023726,2]
[329626879,1718514735355,-150.0,0.0002378,2]
[329626880,1718514735378,-783.57262401,0.00023791,2]
[329626881,1718514735389,-159.34783532,0.000238,2]
[329626882,1718514735406,-171.24440982,0.00023809,2]
[329626883,1718514735418,-151.62822846,0.00023832,2]
[329626884,1718514735428,-155.88145274,0.00023832,2]
[329626885,1718514735443,-2147.35077271,0.00023835,5]
[329626886,1718514735455,-467.56723489,0.00023835,3]
[329626887,1718514735467,-500.0,0.00023835,3]
[329626888,1718514735489,-500.0,0.00023835,3]
[329626889,1718514735500,-500.0,0.00023835,3]
[329626890,1718514735512,-560.40622971,0.00023835,3]
[329626891,1718514735525,-500.0,0.00023835,3]
[329626892,1718514735551,-500.0,0.00023835,3]
[329626893,1718514735580,-500.0,0.00023835,3]
[329626894,1718514735608,-500.0,0.00023835,3]
[329626895,1718514735622,-583.69089508,0.00023835,3]
[329626896,1718514735635,-500.0,0.00023835,3]
[329626897,1718514735649,-1006.68,0.00023835,3]
[329626898,1718514735666,-810.35,0.00023835,3]
[329626899,1718514735700,-500.0,0.00023835,3]
[329626900,1718514735711,-500.0,0.00023835,3]
[329626901,1718514735741,-731.88,0.00023835,3]
[329626902,1718514735767,-500.0,0.00023835,3]
[329626903,1718514735786,-681.94,0.00023835,3]
[329626904,1718514735798,-627.82,0.00023835,3]
[329626905,1718514735812,-536.58,0.00023835,3]
[329626906,1718514735824,-500.0,0.00023835,3]
[329626907,1718514735843,-500.0,0.00023835,3]
[329626908,1718514735853,-901.46,0.00023835,3]
[329626909,1718514735875,-590.95111836,0.00023835,3]
[329626910,1718514735894,-2047.36,0.00023835,3]
[329626911,1718514735907,-500.0,0.00023835,3]
[329626912,1718514735918,-500.0,0.00023835,3]
[329626913,1718514735932,-500.0,0.00023835,3]
[329626914,1718514735945,-500.0,0.00023835,3]
[329626915,1718514735957,-165.0351122,0.00023835,3]
[329626916,1718514735968,-500.0,0.00023835,3]
[329626917,1718514735980,-843.71,0.00023835,3]
[329626918,1718514735991,-500.0,0.00023835,3]
[329626919,1718514736003,-526.6625347,0.00023835,3]
[329626920,1718514736028,-500.0,0.00023835,3]
[329626921,1718514736041,-500.0,0.00023835,3]
[329626922,1718514736068,-513.2,0.00023835,3]
[329626923,1718514736088,-1056.47,0.00023835,3]
[329626924,1718514736107,-150.58207973,0.00023835,3]
[329626925,1718514736124,-906.02,0.00023835,3]
[329626926,1718514736135,-500.0,0.00023835,3]
[329626927,1718514736160,-500.0,0.00023835,3]
[329626928,1718514736175,-277.54228498,0.00023835,3]
[329626929,1718514736188,-500.0,0.00023835,3]
[329626930,1718514736216,-500.08,0.00023835,3]
[329626931,1718514736262,-500.0,0.00023835,3]
[329626932,1718514736292,-500.0,0.00023835,3]
[329626933,1718514736321,-959.23,0.00023835,3]
[329626934,1718514736352,-522.72869987,0.00023835,3]
[329626935,1718514736371,-631.23,0.00023835,3]
[329626936,1718514736382,-500.0,0.00023835,3]
[329626937,1718514736416,-500.0,0.00023835,3]
[329626938,1718514736431,-666.35,0.00023835,3]
[329626939,1718514736443,-500.0,0.00023835,3]
[329626940,1718514736454,-500.0,0.00023835,3]
[329626941,1718514736466,-639.86,0.00023835,3]
[329626942,1718514736483,-500.0,0.00023835,3]
[329626943,1718514736494,-664.8,0.00023835,3]
[329626944,1718514736505,-152.12219019,0.00023835,3]
[329626945,1718514736518,-500.0,0.00023835,3]
[329626946,1718514736531,-1051.67,0.00023835,3]
[329626947,1718514736544,-961.09,0.00023835,3]
[329626948,1718514736563,-500.0,0.00023835,3]
[329626949,1718514736574,-500.0,0.00023835,3]
[329626950,1718514736590,-500.0,0.00023835,3]
[329626951,1718514736610,-500.0,0.00023835,3]
[329626952,1718514736637,-1195.84,0.00023835,3]
[329626953,1718514736653,-500.0,0.00023835,3]
[329626954,1718514736664,-500.0,0.00023835,3]
[329626955,1718514736681,-500.0,0.00023835,3]
[329626956,1718514736700,-770.75,0.00023835,3]
[329626957,1718514736714,-500.0,0.00023835,3]
[329626958,1718514736761,-893.17,0.00023835,3]
[329626959,1718514736782,-172.30272979,0.00023835,3]
[329626960,1718514736800,-500.0,0.00023835,3]
[329626961,1718514736824,-886.11,0.00023835,3]
[329626962,1718514736838,-500.0,0.00023835,3]
[329626963,1718514736854,-618.77,0.00023835,3]
[329626964,1718514736885,-500.0,0.00023835,3]
[329626965,1718514736896,-500.0,0.00023835,3]
[329626966,1718514736909,-500.0,0.00023835,3]
[329626967,1718514736919,-985.78,0.00023835,3]
[329626968,1718514736936,-835.26,0.00023835,3]
[329626969,1718514736957,-513.36,0.00023835,3]
[329626970,1718514736981,-500.0,0.00023835,3]
[329626971,1718514736991,-501.85,0.00023835,3]
[329626972,1718514737002,-500.0,0.00023835,3]
[329626973,1718514737012,-522.16416814,0.00023835,3]
[329626974,1718514737023,-989.9,0.00023835,3]
[329626975,1718514737033,-500.0,0.00023835,3]
[329626976,1718514737060,-572.39,0.00023835,3]
[329626977,1718514737090,-500.0,0.00023835,3]
[329626978,1718514737116,-500.0,0.00023835,3]
[329626979,1718514737132,-500.0,0.00023835,3]
[329626980,1718514737153,-634.14,0.00023835,3]
[329626981,1718514737176,-500.0,0.00023835,3]
[329626982,1718514737188,-525.92204953,0.00023835,3]
[329626983,1718514737200,-508.55,0.00023835,3]
[329626984,1718514737212,-578.78,0.00023835,3]
[329626985,1718514737225,-500.0,0.00023835,3]
[329626986,1718514737235,-500.0,0.00023835,3]
[329626987,1718514737254,-623.1,0.00023835,3]
[329626988,1718514737271,-500.0,0.00023835,3]
[329626989,1718514737294,-500.0,0.00023835,3]
[329626990,1718514737310,-537.02523752,0.00023835,3]
[329626991,1718514737327,-558.36,0.00023835,3]
[329626992,1718514737349,-500.0,0.00023835,3]
[329626993,1718514737365,-692.22,0.00023835,3]
[329626994,1718514737393,-500.0,0.00023835,3]
[329626995,1718514737412,-500.0,0.00023835,3]
[329626996,1718514737423,-500.0,0.00023835,3]
[329626997,1718514737435,-679.49,0.00023835,3]
[329626998,1718514737453,-572.49415388,0.00023835,3]
[329626999,1718514737465,-546.36,0.00023835,3]
[329627000,1718514737482,-500.0,0.00023835,3]
[329627001,1718514737510,-500.0,0.00023835,3]
[329627002,1718514737539,-500.0,0.00023835,3]
[329627003,1718514737558,-500.0,0.00023835,3]
[329627004,1718514737569,-500.0,0.00023835,3]
[329627005,1718514737601,-500.0,0.00023835,3]
[329627006,1718514737617,-500.0,0.00023835,3]
[329627007,1718514737629,-611.71,0.00023835,3]
[329627008,1718514737656,-500.0,0.00023835,3]
[329627009,1718514737684,-1146.72,0.00023835,3]
[329627010,1718514737707,-500.0,0.00023835,3]
[329627011,1718514737727,-500.0,0.00023835,3]
[329627012,1718514737756,-500.0,0.00023835,3]
[329627013,1718514737781,-500.0,0.00023835,3]
[329627014,1718514737794,-500.0,0.00023835,3]
[329627015,1718514737804,-500.0,0.00023835,3]
[329627016,1718514737817,-898.73,0.00023835,3]
[329627017,1718514737831,-500.0,0.00023835,3]
[329627018,1718514737874,-607.26,0.00023835,3]
[329627019,1718514737888,-500.0,0.00023835,3]
[329627020,1718514737909,-778.55,0.00023835,3]
[329627021,1718514737928,-500.0,0.00023835,3]
[329627022,1718514737947,-500.0,0.00023835,3]
[329627023,1718514737972,-510.7,0.00023835,3]
[329627024,1718514737997,-500.0,0.00023835,3]
[329627025,1718514738012,-738.65,0.00023835,3]
[329627026,1718514738031,-595.17,0.00023835,3]
[329627027,1718514738050,-500.0,0.00023835,3]
[329627028,1718514738081,-698.26,0.00023835,3]
[329627029,1718514738104,-500.0,0.00023835,3]
[329627030,1718514738118,-464.52345462,0.00023835,3]
[329627031,1718514738141,-500.0,0.00023835,3]
[329627032,1718514738156,-500.0,0.00023835,3]
[329627033,1718514738181,-500.0,0.00023835,3]
[329627034,1718514738208,-500.0,0.00023835,3]
[329627035,1718514738221,-500.0,0.00023835,3]
[329627036,1718514738238,-500.0,0.00023835,3]
[329627037,1718514738249,-742.17,0.00023835,3]
[329627038,1718514738270,-832.09,0.00023835,3]
[329627039,1718514738297,-500.0,0.00023835,3]
[329627040,1718514738320,-500.0,0.00023835,3]
[329627041,1718514738341,-500.0,0.00023835,3]
[329627042,1718514738354,-669.49,0.00023835,3]
[329627043,1718514738366,-500.0,0.00023835,3]
[329627044,1718514738382,-500.0,0.00023835,3]
[329627045,1718514738432,-847.82,0.00023835,3]
[329627046,1718514738453,-984.98,0.00023835,3]
[329627047,1718514738472,-500.0,0.00023835,3]
[329627048,1718514738485,-500.0,0.00023835,3]
[329627049,1718514738503,-500.0,0.00023835,3]
[329627050,1718514738524,-500.0,0.00023835,3]
[329627051,1718514738558,-500.0,0.00023835,3]
[329627052,1718514738586,-652.56,0.00023835,3]
[329627053,1718514738609,-500.0,0.00023835,3]
[329627054,1718514738636,-597.69265997,0.00023835,3]
[329627055,1718514738664,-500.0,0.00023835,3]
[329627056,1718514738676,-500.0,0.00023835,3]
[329627057,1718514738697,-500.0,0.00023835,3]
[329627058,1718514738736,-843.09,0.00023835,3]
[329627059,1718514738753,-500.0,0.00023835,3]
[329627060,1718514738781,-535.33,0.00023835,3]
[329627061,1718514738793,-1201.34,0.00023835,3]
[329627062,1718514738804,-500.0,0.00023835,3]
[329627063,1718514738815,-909.26,0.00023835,3]
[329627064,1718514738851,-500.0,0.00023835,3]
[329627065,1718514738866,-1002.88,0.00023835,3]
[329627066,1718514738878,-500.0,0.00023835,3]
[329627067,1718514738893,-500.0,0.00023835,3]
[329627068,1718514738906,-778.38,0.00023835,3]
[329627069,1718514738930,-500.0,0.00023835,3]
[329627070,1718514738944,-416.7,0.00023835,3]
[329627071,1718514738958,-1202.7,0.00023835,3]
[329627072,1718514738971,-500.0,0.00023835,3]
[329627073,1718514738988,-500.0,0.00023835,3]
[329627074,1718514739001,-776.34,0.00023835,3]
[329627075,1718514739017,-500.0,0.00023835,3]
[329627076,1718514739029,-500.0,0.00023835,3]
[329627077,1718514739041,-500.0,0.00023835,3]
[329627078,1718514739058,-544.11,0.00023835,3]
[329627079,1718514739086,-500.0,0.00023835,3]
[329627080,1718514739100,-527.2,0.00023835,3]
[329627081,1718514739112,-500.0,0.00023835,3]
[329627082,1718514739146,-500.0,0.00023835,3]
[329627083,1718514739160,-675.42,0.00023835,3]
[329627084,1718514739185,-500.0,0.00023835,3]
[329627085,1718514739216,-500.0,0.00023835,3]
[329627086,1718514739250,-500.0,0.00023835,3]
[329627087,1718514739280,-500.0,0.00023835,3]
[329627088,1718514739296,-500.0,0.00023835,3]
[329627089,1718514739311,-500.0,0.00023835,3]
[329627090,1718514739350,-500.0,0.00023835,3]
[329627091,1718514739371,-343.84,0.00023835,3]
[329627092,1718514739396,-634.93350757,0.00023835,3]
[329627093,1718514739445,-500.0,0.00023835,3]
[329627094,1718514739460,-500.0,0.00023835,3]
[329627095,1718514739480,-500.0,0.00023835,3]
[329627096,1718514739516,-1832.91,0.00023835,3]
[329627097,1718514739528,-500.0,0.00023835,3]
[329627098,1718514739545,-567.88,0.00023835,3]
[329627099,1718514739608,-551.74,0.00023835,3]
[329627100,1718514739622,-500.0,0.00023835,3]
[329627101,1718514739638,-901.11,0.00023835,3]
[329627102,1718514739653,-681.26,0.00023835,3]
[329627103,1718514739666,-500.0,0.00023835,3]
[329627104,1718514739691,-454.3641783,0.00023835,3]
[329627105,1718514739712,-726.69,0.00023835,3]
[329627106,1718514739733,-500.0,0.00023835,3]
[329627107,1718514739762,-545.46,0.00023835,3]
[329627108,1718514739782,-3304.19,0.00023835,3]
[329627109,1718514739796,-736.37,0.00023835,3]
[329627110,1718514739818,-500.0,0.00023835,3]
[329627111,1718514739848,-500.0,0.00023835,3]
[329627112,1718514739892,-500.0,0.00023835,3]
[329627113,1718514739905,-500.0,0.00023835,3]
[329627114,1718514739926,-500.0,0.00023835,3]
[329627115,1718514739939,-500.0,0.00023835,3]
[329627116,1718514739958,-500.0,0.00023835,3]
[329627117,1718514739978,-500.0,0.00023835,3]
[329627118,1718514739995,-500.0,0.00023835,3]
[329627119,1718514740022,-997.85,0.00023835,3]
[329627120,1718514740039,-14230.41,0.00023835,3]
[329627121,1718514740062,-500.0,0.00023835,3]
[329627122,1718514740075,-530.5,0.00023835,3]
[329627123,1718514740117,-1006.75,0.00023835,3]
[329627124,1718514740130,-500.0,0.00023835,3]
[329627125,1718514740158,-500.0,0.00023835,3]
[329627126,1718514740169,-500.0,0.00023835,3]
[329627127,1718514740201,-500.0,0.00023835,3]
[329627128,1718514740232,-500.0,0.00023835,3]
[329627129,1718514740246,-500.0,0.00023835,3]
[329627130,1718514740263,-500.0,0.00023835,3]
[329627131,1718514740308,-759.3,0.00023835,3]
[329627132,1718514740348,-500.0,0.00023835,3]
[329627133,1718514740410,-500.0,0.00023835,3]
[329627134,1718514740428,-1157.82,0.00023835,3]
[329627135,1718514740447,-674.57,0.00023835,3]
[329627136,1718514740492,-566.27,0.00023835,3]
[329627137,1718514740508,-500.0,0.00023835,3]
[329627138,1718514740526,-1539.31,0.00023835,3]
[329627139,1718514740557,-500.0,0.00023835,3]
[329627140,1718514740584,-943.14,0.00023835,3]
[329627141,1718514740611,-659.14,0.00023835,3]
[329627142,1718514740665,-500.0,0.00023835,3]
[329627143,1718514740682,-500.0,0.00023835,3]
[329627144,1718514740698,-560.32,0.00023835,3]
[329627145,1718514740714,-614.56,0.00023835,3]
[329627146,1718514740735,-500.0,0.00023835,3]
[329627147,1718514740760,-500.0,0.00023835,3]
[329627148,1718514740774,-7764.92,0.00023835,3]
[329627149,1718514740793,-557.31,0.00023835,3]
[329627150,1718514740808,-552.59,0.00023835,3]
[329627151,1718514740835,-661.73,0.00023835,3]
[329627152,1718514740851,-611.43,0.00023835,3]
[329627153,1718514740864,-674.64,0.00023835,3]
[329627154,1718514740878,-1729.68,0.00023835,3]
[329627155,1718514740890,-500.0,0.00023835,3]
[329627156,1718514740903,-500.0,0.00023835,3]
[329627157,1718514740918,-1354.36,0.00023835,3]
[329627158,1718514740949,-604.17,0.00023835,3]
[329627159,1718514740974,-664.59,0.00023835,3]
[329627160,1718514740988,-10271.42,0.00023835,3]
[329627161,1718514741001,-500.0,0.00023835,3]
[329627162,1718514741012,-900.1,0.00023835,3]
[329627163,1718514741039,-500.0,0.00023835,3]
[329627164,1718514741077,-500.0,0.00023835,3]
[329627165,1718514741090,-500.0,0.00023835,3]
[329627166,1718514741106,-818.66,0.00023835,3]
[329627167,1718514741122,-500.0,0.00023835,3]
[329627168,1718514741139,-1612.07,0.00023835,3]
[329627169,1718514741181,-1755.9,0.00023835,3]
[329627170,1718514741199,-611.26,0.00023835,3]
[329627171,1718514741215,-500.0,0.00023835,3]
[329627172,1718514741247,-1606.26,0.00023835,3]
[329627173,1718514741265,-4378.33,0.00023835,3]
[329627174,1718514741307,-500.0,0.00023835,3]
[329627175,1718514741332,-500.0,0.00023835,3]
[329627176,1718514741346,-4916.83,0.00023835,3]
[329627177,1718514741387,-2853.1,0.00023835,3]
[329627178,1718514741429,-500.0,0.00023835,3]
[329627179,1718514741465,-1035.35,0.00023835,3]
[329627180,1718514741496,-500.0,0.00023835,3]
[329627181,1718514741509,-869.12,0.00023835,3]
[329627182,1718514741522,-567.1,0.00023835,3]
[329627183,1718514741544,-578.11,0.00023835,3]
[329627184,1718514741852,-500.0,0.00023835,3]
[329627185,1718514741876,-540.52838132,0.00023835,3]
[329627186,1718514741893,-1538.82,0.00023835,3]
[329627187,1718514741908,-763.71,0.00023835,3]
[329627188,1718514741921,-2296.48,0.00023835,3]
[329627189,1718514741946,-1775.07,0.00023835,3]
[329627190,1718514741958,-500.0,0.00023835,3]
[329627191,1718514741969,-964.71,0.00023835,3]
[329627192,1718514741982,-500.0,0.00023835,3]
[329627193,1718514741995,-895.78,0.00023835,3]
[329627194,1718514742010,-642.17,0.00023835,3]
[329627195,1718514742022,-636.93,0.00023835,3]
[329627196,1718514742036,-2443.29,0.00023835,3]
[329627197,1718514742049,-500.0,0.00023835,3]
[329627198,1718514742063,-1515.42,0.00023835,3]
[329627199,1718514742077,-1004.46,0.00023835,3]
[329627200,1718514742089,-1070.36,0.00023835,3]
[329627201,1718514742102,-803.03,0.00023835,3]
[329627202,1718514742121,-923.04,0.00023835,3]
[329627203,1718514742136,-500.0,0.00023835,3]
[329627204,1718514742149,-593.8,0.00023835,3]
[329627205,1718514742179,-797.61,0.00023835,3]
[329627206,1718514742203,-500.0,0.00023835,3]
[329627207,1718514742239,-588.71,0.00023835,3]
[329627208,1718514742295,-500.0,0.00023835,3]
[329627209,1718514742326,-2230.64,0.00023835,3]
[329627210,1718514742342,-500.0,0.00023835,3]
[329627211,1718514742356,-500.0,0.00023835,3]
[329627212,1718514742369,-1061.13,0.00023835,3]
[329627213,1718514742385,-9618.01,0.00023835,3]
[329627214,1718514742411,-500.0,0.00023835,3]
[329627215,1718514742440,-500.0,0.00023835,3]
[329627216,1718514742459,-500.0,0.00023835,3]
[329627217,1718514742478,-2383.54,0.00023835,3]
[329627218,1718514742492,-500.0,0.00023835,3]
[329627219,1718514742517,-500.0,0.00023835,3]
[329627220,1718514742545,-860.94,0.00023835,3]
[329627221,1718514742578,-792.78,0.00023835,3]
[329627222,1718514742595,-4216.59,0.00023835,3]
[329627223,1718514742610,-858.57,0.00023835,3]
[329627224,1718514742624,-2109.27,0.00023835,3]
[329627225,1718514742638,-567.07,0.00023835,3]
[329627226,1718514742654,-1400.62,0.00023835,3]
[329627227,1718514742670,-1037.47,0.00023835,3]
[329627228,1718514742687,-1574.3,0.00023835,3]
[329627229,1718514742716,-500.0,0.00023835,3]
[329627230,1718514742729,-543.8290729,0.00023835,3]
[329627231,1718514742741,-2771.95,0.00023835,3]
[329627232,1718514742754,-500.0,0.00023835,3]
[329627233,1718514742785,-3713.47,0.00023835,3]
[329627234,1718514742807,-534.45,0.00023835,3]
[329627235,1718514742841,-500.0,0.00023835,3]
[329627236,1718514742866,-500.0,0.00023835,3]
[329627237,1718514742878,-1420.21,0.00023835,3]
[329627238,1718514742891,-500.0,0.00023835,3]
[329627239,1718514742912,-1310.36,0.00023835,3]
[329627240,1718514742960,-500.0,0.00023835,3]
[329627241,1718514742983,-633.25,0.00023835,3]
[329627242,1718514743014,-1378.93,0.00023835,3]
[329627243,1718514743043,-851.88,0.00023835,3]
[329627244,1718514743065,-790.92,0.00023835,3]
[329627245,1718514743085,-500.0,0.00023835,3]
[329627246,1718514743124,-2966.95,0.00023835,3]
[329627247,1718514743142,-636.09,0.00023835,3]
[329627248,1718514743183,-712.87,0.00023835,3]
[329627249,1718514743208,-500.0,0.00023835,3]
[329627250,1718514743241,-827.77,0.00023835,3]
[329627251,1718514743268,-2232.36,0.00023835,3]
[329627252,1718514743286,-860.52,0.00023835,3]
[329627253,1718514743308,-2707.96,0.00023835,3]
[329627254,1718514743321,-614.18,0.00023835,3]
[329627255,1718514743345,-519.70072305,0.00023835,3]
[329627256,1718514743359,-2212.02,0.00023835,3]
[329627257,1718514743374,-500.0,0.00023835,3]
[329627258,1718514743386,-703.42,0.00023835,3]
[329627259,1718514743398,-721.36,0.00023835,3]
[329627260,1718514743411,-500.0,0.00023835,3]
[329627261,1718514743424,-4360.28,0.00023835,3]
[329627262,1718514743435,-2177.96,0.00023835,3]
[329627263,1718514743455,-500.0,0.00023835,3]
[329627264,1718514743472,-1356.14,0.00023835,3]
[329627265,1718514743490,-500.0,0.00023835,3]
[329627266,1718514743519,-500.0,0.00023835,3]
[329627267,1718514743556,-749.56,0.00023835,3]
[329627268,1718514743589,-1848.29,0.00023835,3]
[329627269,1718514743624,-500.0,0.00023835,3]
[329627270,1718514743647,-1211.0,0.00023835,3]
[329627271,1718514743662,-666.51,0.00023835,3]
[329627272,1718514743685,-578.68,0.00023835,3]
[329627273,1718514743713,-1213.86,0.00023835,3]
[329627274,1718514743726,-2709.96,0.00023835,3]
[329627275,1718514743748,-583.95,0.00023835,3]
[329627276,1718514743770,-500.0,0.00023835,3]
[329627277,1718514743796,-500.0,0.00023835,3]
[329627278,1718514743810,-578.04,0.00023835,3]
[329627279,1718514743827,-795.69,0.00023835,3]
[329627280,1718514743842,-1483.55,0.00023835,3]
[329627281,1718514743862,-790.88,0.00023835,3]
[329627282,1718514743888,-1309.75,0.00023835,3]
[329627283,1718514743917,-500.0,0.00023835,3]
[329627284,1718514743931,-555.11,0.00023835,3]
[329627285,1718514743943,-1243.88,0.00023835,3]
[329627286,1718514743963,-3595.59,0.00023835,3]
[329627287,1718514743998,-329.20363529,0.00023835,3]
[329627288,1718514744016,-500.0,0.00023835,3]
[329627289,1718514744064,-1564.83,0.00023835,3]
[329627290,1718514744092,-1006.94,0.00023835,3]
[329627291,1718514744104,-500.0,0.00023835,3]
[329627292,1718514744133,-1366.9,0.00023835,3]
[329627293,1718514744165,-500.0,0.00023835,3]
[329627294,1718514744213,-799.86,0.00023835,3]
[329627295,1718514744241,-523.6,0.00023835,3]
[329627296,1718514744275,-729.35,0.00023835,3]
[329627297,1718514744306,-2013.29,0.00023835,3]
[329627298,1718514744334,-500.0,0.00023835,3]
[329627299,1718514744347,-1202.1,0.00023835,3]
[329627300,1718514744361,-989.7,0.00023835,3]
[329627301,1718514744391,-1512.39,0.00023835,3]
[329627302,1718514744435,-500.0,0.00023835,3]
[329627303,1718514744459,-898.42,0.00023835,3]
[329627304,1718514744518,-500.0,0.00023835,3]
[329627305,1718514744557,-680.39,0.00023835,3]
[329627306,1718514744582,-651.97,0.00023835,3]
[329627307,1718514744608,-525.67,0.00023835,3]
[329627308,1718514744629,-500.0,0.00023835,3]
[329627309,1718514744677,-1084.0,0.00023835,3]
[329627310,1718514744701,-1217.87,0.00023835,3]
[329627311,1718514744724,-4820.64,0.00023835,3]
[329627312,1718514744745,-1818.54,0.00023835,3]
[329627313,1718514744765,-633.1,0.00023835,3]
[329627314,1718514744786,-2630.9,0.00023835,3]
[329627315,1718514744799,-1495.18,0.00023835,3]
[329627316,1718514744811,-500.78,0.00023835,3]
[329627317,1718514744834,-1510.03,0.00023835,3]
[329627318,1718514744850,-1076.28,0.00023835,3]
[329627319,1718514744863,-500.0,0.00023835,3]
[329627320,1718514744876,-500.0,0.00023835,3]
[329627321,1718514744890,-1023.85,0.00023835,3]
[329627322,1718514744919,-500.0,0.00023835,3]
[329627323,1718514744962,-514.32,0.00023835,3]
[329627324,1718514744989,-801.98,0.00023835,3]
[329627325,1718514745012,-526.07,0.00023835,3]
[329627326,1718514745046,-501.51,0.00023835,3]
[329627327,1718514745076,-5728.5,0.00023835,3]
[329627328,1718514745087,-1246.39,0.00023835,3]
[329627329,1718514745117,-12175.18,0.00023835,3]
[329627330,1718514745140,-1613.0,0.00023835,3]
[329627331,1718514745157,-918.72,0.00023835,3]
[329627332,1718514745179,-1529.61,0.00023835,3]
[329627333,1718514745197,-2489.26,0.00023835,3]
[329627334,1718514745216,-771.85,0.00023835,3]
[329627335,1718514745230,-423.52,0.00023835,3]
[329627336,1718514745241,-227.59049369,0.00023835,3]
[329627337,1718514745262,-152.15813089,0.00023844,2]
[329627338,1718514745273,-152.83323731,0.0002385,2]
[329627339,1718514745285,-171.26719599,0.00023861,2]
[329627340,1718514745297,-466.66446184,0.00023869,2]
[329627341,1718514745309,-86444.71931781,0.0002388,2]
[329627342,1718514745328,-152.0,0.00023892,9]
[329627343,1718514745340,-466.66446184,0.00023898,2]
[329627344,1718514745351,-1000.0,0.000239,4]
[329627345,1718514745363,-166.66666666,0.00023916,2]
[329627346,1718514745374,-325.55548374,0.00023931,2]
[329627347,1718514745386,-600.0,0.00023933,4]
[329627348,1718514745398,-600.0,0.00023935,4]
[329627349,1718514745409,-466.66446184,0.00023939,2]
[329627350,1718514745420,-466.66446184,0.00023941,2]
[329627351,1718514745430,-689.66855916,0.00023941,2]
[329627352,1718514745440,-325.55548374,0.00023941,2]
[329627353,1718514745451,-159.93731404,0.00023971,2]